Cogmind - Beta 13 @@@ ROGUE MODE // 2024.06.09 @ 18:35:38 Player: Arioch Result: Destroyed by G-50 Soldier with Heavy Laser Performance ------------- Evolutions (5) 2500 Regions Visited (15) 3000 Robots Destroyed (145) 725 Value Destroyed (6730) 6730 Prototype IDs (17) 340 Alien Tech Used (0) 0 Bonus (1499) 1499 TOTAL SCORE: 14794 Bonus ------- Follower Combat Kills 722 Met Data Miner 300 Met R17 at Cetus 500 Friendly Fire -23 Cogmind --------- Core Integrity 0/1000 Matter 275/300 Energy 100/100 System Corruption 0% Temperature Critical (536) Movement Core (500) Ox9 Location -5/Hub_04(d) Parts ------- > --- POWER (1) -------- (None) > --- PROPULSION (5) --- (None) > --- UTILITY (8) ------ Advanced Heat Sink Medium Storage Unit Improved Signal Interpreter > --- WEAPON (3) ------- Advanced Variable Charge Gun Quantum Rifle Railgun > --- INVENTORY (10) --- Hacking Suite Improved Hacking Suite Railgun Peak State ------------ > --- POWER ------------ Quantum Reactor > --- PROPULSION ------- Carbon-fiber Leg Carbon-fiber Leg Flexi-carbon Leg Flexi-carbon Leg Flexi-carbon Leg > --- UTILITY ---------- Advanced Heat Sink Advanced Heat Sink Advanced Heat Sink Medium Storage Unit Improved Sensor Array Improved Signal Interpreter Centrium Medium Armor Plating Centrium Medium Armor Plating > --- WEAPON ----------- Advanced Variable Charge Gun Advanced KE Penetrator Advanced KE Penetrator > --- INVENTORY -------- Quantum Reactor Carbon-fiber Leg Carbon-fiber Leg Advanced Variable Charge Gun Quantum Rifle Quantum Rifle Railgun Railgun Advanced KE Penetrator Magnetic Acceleration Cannon [Rating: 100] Favorites ----------- Power Improved Deuterium Engine Engine Improved Deuterium Engine Power Core Neutrino Core Reactor Quantum Reactor Propulsion Carbon-fiber Leg Treads Improved Treads Leg Carbon-fiber Leg Hover Unit Antigrav System Utility Advanced Heat Sink Device Advanced Heat Sink Storage Small Storage Unit Processor Improved Signal Interpreter Hackware Hacking Suite Protection Improved Medium Armor Plating Weapon KE Penetrator Energy Gun High-powered Field Laser Energy Cannon Heavy Phase Cannon Ballistic Gun KE Penetrator Ballistic Cannon Magnetic Acceleration Cannon Special Weapon Molecular Deconstructor Build | -11 -10 -10 -9 -8 -7 -6 -6 -6 -6 -5 -5 -5 -5 -5 -5 ------- Run | Yrd Mat Min Mat Mat Fac Fac Low Low Dat Pro Fac Ext Cet Arc Hub Slots Evolved 10 | . . . 2 2 2 2 . . . . 2 . . . . Power . | . . . . . . . . . . . . . . . . Propulsion 3 | . . . . 1 . . . . . . 2 . . . . Utility 6 | . . . 2 1 1 2 . . . . . . . . . Weapon 1 | . . . . . 1 . . . . . . . . . . Parts Attached 192 | 6 1 1 8 19 32 12 5 8 3 5 12 50 13 8 9 Power 25 | 1 . . 1 3 5 2 . 1 . 2 2 6 1 . 1 Engine 13 | 1 . . 1 2 4 1 . 1 . . . 3 . . . Core 9 | . . . . 1 1 . . . . 2 2 3 . . . Reactor 3 | . . . . . . 1 . . . . . . 1 . 1 Propulsion 53 | 2 . . 2 6 11 2 . . . . 4 18 3 2 3 Treads 8 | . . . . . . . . . . . . 8 . . . Leg 44 | 2 . . 2 6 11 2 . . . . 3 10 3 2 3 Wheel . | . . . . . . . . . . . . . . . . Hover 1 | . . . . . . . . . . . 1 . . . . Flight . | . . . . . . . . . . . . . . . . Utility 62 | 1 1 1 4 7 7 4 3 3 . 1 3 18 5 4 . Device 37 | . 1 1 3 4 2 3 2 3 . 1 3 8 3 3 . Storage 3 | 1 . . . . 1 . . . . . . 1 . . . Processor 4 | . . . 1 1 1 . . . . . . 1 . . . Hackware 2 | . . . . 1 . . . . . . . 1 . . . Protection 16 | . . . . 1 3 1 1 . . . . 7 2 1 . Artifact . | . . . . . . . . . . . . . . . . Weapon 52 | 2 . . 1 3 9 4 2 4 3 2 3 8 4 2 5 Energy Gun 16 | . . . . 1 4 2 . . 1 . . 2 2 . 4 Energy Cannon 7 | . . . 1 . . . 2 1 1 1 1 . . . . Ballistic Gun 20 | 2 . . . 2 3 1 . 1 1 1 . 5 1 2 1 Ballistic Cannon 8 | . . . . . 2 1 . 1 . . 2 1 1 . . Launcher . | . . . . . . . . . . . . . . . . Special Weapon 1 | . . . . . . . . 1 . . . . . . . Impact Weapon . | . . . . . . . . . . . . . . . . Slashing Weapon . | . . . . . . . . . . . . . . . . Piercing Weapon . | . . . . . . . . . . . . . . . . Special Melee Weapon . | . . . . . . . . . . . . . . . . Unidentified Prototypes 8 | . . . 1 . 2 1 . 1 . . . . 3 . . Parts Lost 73 | . . . . 12 5 3 . 3 . . 13 13 4 1 19 Power 9 | . . . . 2 1 1 . . . . 2 1 . . 2 Propulsion 20 | . . . . 3 2 . . . . . 3 3 1 1 7 Utility 24 | . . . . 3 1 1 . 2 . . 4 6 2 . 5 Weapon 20 | . . . . 4 1 1 . 1 . . 4 3 1 . 5 Highest Loss Streak 18 | . . . . 9 1 3 . 3 . . 11 6 4 1 18 To Critical Strikes 2 | . . . . . . . . . . . . . 1 . 1 Average Slot Usage (%) 94 | . 99 100 99 84 98 99 100 99 76 98 82 85 98 99 88 Engine 4 | . 14 14 11 6 6 2 6 6 6 2 . 1 . . . Core 1 | . . . . 1 . . . . . 3 4 3 4 . . Treads 1 | . . . . . . . . . . . . 8 . . . Leg 20 | . 28 28 22 21 22 20 20 20 20 20 23 14 29 28 23 Device 20 | . 13 14 21 17 15 20 26 25 20 25 17 22 21 23 20 Storage 6 | . 14 14 11 7 5 6 6 6 6 6 4 4 5 5 5 Processor 6 | . . . 11 7 13 6 6 6 6 6 4 2 5 5 5 Hackware 4 | . . . . 5 7 6 6 6 6 6 4 . 4 . . Protection 5 | . . . . 3 2 12 6 6 6 6 4 8 5 11 9 Energy Gun 4 | . . . . 1 10 5 . . . 6 3 4 4 4 2 Energy Cannon 2 | . . . 10 6 . . 6 6 1 6 3 . . . . Ballistic Gun 7 | . 28 28 11 7 5 6 6 5 1 6 3 8 9 8 13 Ballistic Cannon 2 | . . . . . 4 6 6 5 . . 1 1 1 2 . Naked Turns 28 | . . . . . . . . . . . 28 . . . . Heaviest Build 68 | 14 15 15 21 26 39 51 49 47 46 49 54 68 68 68 66 Greatest Support 115 | 20 20 20 28 41 53 54 49 49 49 49 69 115 85 90 90 Greatest Overweight (x) 2 | 1 . . 1 . 1 . . . . . 1 1 . . 2 Average Overweight (x) . | . . . . . . . . . . . . . . . . Largest Inventory Capacity 10 | 8 8 8 8 8 8 8 8 8 8 8 8 10 10 10 10 Average Capacity 8 | 7 8 8 8 7 7 8 8 8 8 8 7 9 10 10 10 Most Carried 10 | 2 5 6 8 8 8 8 8 8 8 8 8 10 10 10 10 Average Carried 7 | 1 3 5 7 6 7 7 7 7 7 6 6 8 9 9 9 Final Capacity 10 | 8 8 8 8 5 8 8 8 8 8 8 5 10 10 10 10 Final Carried 10 | 2 5 5 8 4 8 8 8 6 6 8 3 10 10 10 3 Class Distribution -------------------- 49% | Scavenger-Skirmisher 25% | Scavenger-Tank 11% | Scavenger-Mutant 7% | Mutant 3% | Scavenger-Gunner Dominant Class ---------------- Mutant | -10/Materials Mutant | -10/Mines Scavenger-Mutant | -9/Materials Scavenger-Mutant | -8/Materials Scavenger-Skirmisher | -7/Factory Scavenger-Tank | -6/Factory Scavenger-Skirmisher | -6/Lower Caves Scavenger-Skirmisher | -6/Lower Caves Scavenger-Mutant | -6/Data Miner Scavenger-Skirmisher | -5/Proximity Caves Scavenger-Skirmisher | -5/Factory Scavenger-Tank | -5/Extension Scavenger-Tank | -5/Cetus Scavenger-Tank | -5/Archives Scavenger-Tank | -5/Hub_04(d) Resources | -11 -10 -10 -9 -8 -7 -6 -6 -6 -6 -5 -5 -5 -5 -5 -5 ----------- Run | Yrd Mat Min Mat Mat Fac Fac Low Low Dat Pro Fac Ext Cet Arc Hub Matter Collected 4695 | 106 13 57 323 222 523 299 150 290 . 187 81 1654 289 332 169 Remotely . | . . . . . . . . . . . . . . . . Salvage Created 6806 | . 29 . 231 717 997 319 101 412 . 312 522 1683 353 389 741 Parts 322 | . 5 . 13 42 40 14 7 19 . 12 17 84 15 17 37 Haulers Intercepted . | . . . . . . . . . . . . . . . . Recyclers Shooed 6 | . . . . 1 2 . . . . . 1 2 . . . Parts Field Recycled . | . . . . . . . . . . . . . . . . Retrieved Matter . | . . . . . . . . . . . . . . . . Parts Self-Destructed 30 | . . . . . . . 6 13 . 11 . . . . . Prevented . | . . . . . . . . . . . . . . . . Kills | -11 -10 -10 -9 -8 -7 -6 -6 -6 -6 -5 -5 -5 -5 -5 -5 ------- Run | Yrd Mat Min Mat Mat Fac Fac Low Low Dat Pro Fac Ext Cet Arc Hub Combat Hostiles Destroyed 114 | . 1 . 5 12 21 7 2 9 . 8 7 22 5 4 11 Guns 61 | . 1 . 1 9 14 1 . 1 . 4 3 12 3 1 11 Cannons 47 | . . . 4 3 5 2 2 8 . 4 4 10 2 3 . AOE 4 | . . . . . . 4 . . . . . . . . . Classes Destroyed 15 | . 2 . 2 3 2 . 1 3 . . . 2 . . . Worker 4 | . . . . . 1 . . . . . 1 . . . 2 Builder 4 | . . . . . . . . . . . . 3 . . 1 Recycler 8 | . . . . 2 2 . . . . . 1 3 . . . Operator 5 | . . . . 1 . . . . . . . 1 . 2 1 Watcher 10 | . 1 . 1 1 1 1 . . . . 1 3 1 . . Swarmer 19 | . 1 . . 1 3 4 . . . 5 . 5 . . . Grunt 44 | . . . 4 9 7 3 1 3 . 3 . 7 . . 7 Brawler 1 | . . . . . . . . 1 . . . . . . . Duelist 2 | . . . 1 . 1 . . . . . . . . . . Sentry 17 | . . . . 2 4 . . . . . 1 6 . 4 . Specialist 2 | . . . . . . . . 2 . . . . . . . Hunter 10 | . . . . . . . 1 . . . 3 2 . . 4 Programmer 10 | . . . . . 6 . . 1 . . 3 . . . . Behemoth 2 | . . . . . . . . . . . . 2 . . . Cetus Guard 5 | . . . . . . . . . . . . . 5 . . Thief 1 | . . . . . . . . 1 . . . . . . . Thug 1 | . . . . . . . . 1 . . . . . . . Best Kill Streak 8 | . 1 . 2 6 8 4 1 4 . 5 6 5 4 3 6 Combat Bots Only 6 | . 1 . 2 6 6 4 1 4 . 5 5 5 4 3 5 Max Kills in Single Turn 4 | . 1 . 1 1 2 4 1 1 . 1 1 3 1 1 2 Gunslinging . | . . . . . . . . . . . . . . . . Exploded 4 | . . . . . . 4 . . . . . . . . . Melee . | . . . . . . . . . . . . . . . . Uniques/NPCs Destroyed . | . . . . . . . . . . . . . . . . Combat | -11 -10 -10 -9 -8 -7 -6 -6 -6 -6 -5 -5 -5 -5 -5 -5 -------- Run | Yrd Mat Min Mat Mat Fac Fac Low Low Dat Pro Fac Ext Cet Arc Hub Hostile Shots Fired 1109 | . 5 . 28 171 157 73 8 32 . 32 126 177 66 28 206 Missed 357 | . 3 . 9 45 74 33 3 3 . 10 40 57 24 10 46 Damage Taken 13571 | . 13 96 283 1782 1287 642 91 488 . 388 1521 2510 1175 476 2819 Core 1851 | . . 10 65 476 136 33 18 54 . 57 145 305 174 27 351 Absorbed by Shields . | . . . . . . . . . . . . . . . . Core Remaining (%) 75 | 100 . 96 83 13 80 . . . . 80 . . . . . Volleys Fired 440 | . 15 . 23 55 51 12 15 24 . 18 27 112 24 43 21 Largest 3 | . 2 . 2 2 3 3 3 3 . 3 3 3 3 3 3 Hottest 268 | . 40 . 88 131 177 153 173 201 . 195 198 171 240 172 268 Shots Fired 1047 | . 30 . 43 102 150 36 25 67 . 54 79 265 60 73 63 Gun 763 | . 30 . 23 70 131 24 5 22 . 36 35 215 57 52 63 Cannon 284 | . . . 20 32 19 12 20 45 . 18 44 50 3 21 . Launcher . | . . . . . . . . . . . . . . . . Special . | . . . . . . . . . . . . . . . . Kinetic 620 | . 30 . 23 54 51 24 10 43 . 17 44 193 45 49 37 Thermal 419 | . . . 20 48 99 12 15 23 . 37 28 72 15 24 26 Explosive . | . . . . . . . . . . . . . . . . Electromagnetic 8 | . . . . . . . . 1 . . 7 . . . . Robot Hit Streak 15 | . 4 . 6 8 15 5 2 11 . 4 7 8 7 10 10 Robot Miss Streak 11 | . 2 . 4 3 10 11 5 3 . 4 3 7 3 3 3 Penetration Max 3 | . . . . . 1 . . . . . 1 3 1 . 1 Secondary Targets 12 | . . . . 4 2 . . . . . . 1 1 . 4 Max Gunslinging Chain 1 | . . . . 1 1 . . . . . . 1 1 . 1 Shots Hit Robots 631 | . 14 . 24 70 108 15 6 41 . 23 54 152 35 46 43 Core Hits 318 | . 4 . 10 34 65 20 5 18 . 13 19 70 18 14 28 Critical Kills 21 | . . . . 2 . . . . . . 2 8 2 3 4 Critical Parts Destroyed 25 | . . . . . . . . . . . 4 13 1 4 3 Critical Strikes 62 | . . . . 3 3 1 . 2 . . 8 24 3 11 7 Burn 3 | . . . . 1 1 . . . . . . 1 . . . Destroy 52 | . . . . 2 . . . . . . 6 23 3 11 7 Blast 7 | . . . . . 2 1 . 2 . . 2 . . . . Melee Attacks . | . . . . . . . . . . . . . . . . Impact . | . . . . . . . . . . . . . . . . Slashing . | . . . . . . . . . . . . . . . . Piercing . | . . . . . . . . . . . . . . . . Sneak Attacks . | . . . . . . . . . . . . . . . . Combat Hostiles . | . . . . . . . . . . . . . . . . Follow-up Attacks . | . . . . . . . . . . . . . . . . Damage Inflicted 16027 | . 175 . 395 1258 2406 681 160 1259 . 579 1485 4024 1037 1133 1435 Guns 10605 | . 172 . 130 707 1803 279 35 258 . 410 380 3180 992 824 1435 Cannons 4823 | . . . 264 513 334 146 125 1001 . 169 1105 812 45 309 . Explosions 467 | . . . . . 211 256 . . . . . . . . . Melee . | . . . . . . . . . . . . . . . . Ramming 132 | . 3 . 1 38 58 . . . . . . 32 . . . Kinetic 9217 | . 172 . 130 484 815 289 94 742 . 181 795 3245 791 679 800 Thermal 6248 | . . . 264 736 1533 136 66 486 . 398 547 747 246 454 635 Explosive . | . . . . . . . . . . . . . . . . Electromagnetic 430 | . . . . . . 256 . 31 . . 143 . . . . Impact . | . . . . . . . . . . . . . . . . Slashing . | . . . . . . . . . . . . . . . . Piercing . | . . . . . . . . . . . . . . . . Highest Corruption 10 | . . 1 . . 1 . . 10 10 10 3 3 3 3 . Average Corruption 3 | . . 1 . . 1 . . 3 10 10 2 3 3 2 . Corruption Purged 3 | . . . . . . . . . . . . . . 3 . Corruption Blocked . | . . . . . . . . . . . . . . . . Effects 104 | . . . . . 9 . . 12 3 31 2 31 10 6 . Message Errors 21 | . . . . . . . . 4 1 10 . 6 . . . Matter Fused 20 | . . . . . 5 . . 2 . 7 . 4 . 2 . Heat Flow Errors 10 | . . . . . 2 . . 2 . 3 . 1 2 . . Energy Discharges 15 | . . . . . 1 . . 2 . 2 . 6 3 1 . Parts Rejected 1 | . . . . . . . . . . . . 1 . . . Parts Fused 1 | . . . . . . . . . . . . . 1 . . Data Loss (minor) 18 | . . . . . . . . . 1 4 1 7 3 2 . Data Loss (major) 6 | . . . . . 1 . . . . 3 . 1 1 . . Misfires 3 | . . . . . . . . . . 1 . 2 . . . Alerts 4 | . . . . . . . . 1 1 . 1 1 . . . Weapon Failures 5 | . . . . . . . . 1 . 1 . 2 . 1 . Overload Shots 1 | . . . . . . . . . . . . . 1 . . Overflow Damage 92 | . . . . . 51 . . 5 . . 18 18 . . . Projectiles 29 | . . . . . . . . 5 . . 18 6 . . . Explosions 51 | . . . . . 51 . . . . . . . . . . Melee 12 | . . . . . . . . . . . . 12 . . . Knockbacks 25 | . . . . 1 1 2 . 6 . . 8 7 . . . Impact 1 | . . . . 1 . . . . . . . . . . . Kinetic 21 | . . . . . 1 1 . 5 . . 8 6 . . . Secondary 3 | . . . . . . 1 . 1 . . . 1 . . . Self-Inflicted Damage 198 | . . . . 8 52 138 . . . . . . . . . Shots 5 | . . . . . 1 4 . . . . . . . . . Rammed 6 | . . . . 6 . . . . . . . . . . . Targets Rammed 19 | . 1 . 1 10 6 . . . . . . 1 . . . Kicked 13 | . 1 . 1 4 6 . . . . . . 1 . . . Crushed . | . . . . . . . . . . . . . . . . Highest Temperature 518 | . . . 108 30 251 435 208 403 . 139 1 51 29 . 518 Average Temperature 85 | . . . 37 13 51 173 70 126 . 69 1 30 24 . 260 Received Heat Transfer 3068 | . . . 168 756 243 126 18 314 . 138 72 573 144 36 480 Effects 1 | . . . . . . . . . . . . . . . 1 Shutdowns 1 | . . . . . . . . . . . . . . . 1 Siege Activations . | . . . . . . . . . . . . . . . . Robots Corrupted . | . . . . . . . . . . . . . . . . Combat Hostiles . | . . . . . . . . . . . . . . . . Parts Fried 4 | . . . . . . 3 . . . . 1 . . . . Impact Corruptions 1 | . . . . . . . . . . . . 1 . . . Robots Melted 2 | . . . . . 2 . . . . . . . . . . Combat Hostiles 2 | . . . . . 2 . . . . . . . . . . Parts Melted 25 | . . . 3 1 15 . . . . 2 2 . . 2 . Heat Transferred 10183 | . . . 481 1480 3227 222 74 518 . 592 740 1221 296 555 777 Parts Sabotaged . | . . . . . . . . . . . . . . . . Parts Stolen . | . . . . . . . . . . . . . . . . Parts Stripped . | . . . . . . . . . . . . . . . . Power Chain Reactions 1 | . . . . . . 1 . . . . . . . . . Alert | -11 -10 -10 -9 -8 -7 -6 -6 -6 -6 -5 -5 -5 -5 -5 -5 ------- Run | Yrd Mat Min Mat Mat Fac Fac Low Low Dat Pro Fac Ext Cet Arc Hub Peak Influence 430 | . 92 35 140 318 220 190 . . . . 201 430 353 256 306 Initial 240 | . . 35 . 27 18 42 . . . . . . 240 58 89 Average 107 | . 55 4 60 146 43 75 . . . . 55 153 292 215 192 Maximum Alert Level 2 | . . . . 1 1 . . . . . 1 2 1 1 1 Low Security (%) 80 | 100 100 100 100 63 99 100 . . . . 99 67 19 27 43 Level 1 18 | . . . . 36 . . . . . . . 25 80 72 56 Level 2 1 | . . . . . . . . . . . . 6 . . . Level 3 . | . . . . . . . . . . . . . . . . Level 4 . | . . . . . . . . . . . . . . . . Level 5 . | . . . . . . . . . . . . . . . . High Security . | . . . . . . . . . . . . . . . . Max Security . | . . . . . . . . . . . . . . . . Squads Dispatched 20 | . 1 . 1 2 8 . . . . . 2 2 . . 4 Investigation 4 | . . . . 1 3 . . . . . . . . . . Extermination 5 | . . . . . 4 . . . . . 1 . . . . Reinforcement 9 | . 1 . 1 1 1 . . . . . . 2 . . 3 Assault . | . . . . . . . . . . . . . . . . Garrison 2 | . . . . . . . . . . . 1 . . . 1 Intercept . | . . . . . . . . . . . . . . . . Searches Triggered . | . . . . . . . . . . . . . . . . Construction Impeded 4 | . . . . . 1 . . . . . . 1 . . 2 Haulers Reinforced 1 | . . . . . . . . . . . . . . . 1 Active Scanning Responses . | . . . . . . . . . . . . . . . . Cargo Convoy Interrupts . | . . . . . . . . . . . . . . . . Stealth | -11 -10 -10 -9 -8 -7 -6 -6 -6 -6 -5 -5 -5 -5 -5 -5 --------- Run | Yrd Mat Min Mat Mat Fac Fac Low Low Dat Pro Fac Ext Cet Arc Hub Distress Signals 9 | . 1 . . 1 . 3 . . . . . 1 2 . 1 Communications Jammed . | . . . . . . . . . . . . . . . . Distress Signals . | . . . . . . . . . . . . . . . . Times Spotted 208 | . 6 . 8 30 26 17 2 12 . 10 12 38 9 16 22 Peak Tracking Total 12 | . 3 . 3 9 5 9 1 7 . 5 4 5 5 1 12 Tactical Retreats 10 | . . . . 3 1 1 . . . 1 . 4 . . . Traps | -11 -10 -10 -9 -8 -7 -6 -6 -6 -6 -5 -5 -5 -5 -5 -5 ------- Run | Yrd Mat Min Mat Mat Fac Fac Low Low Dat Pro Fac Ext Cet Arc Hub Traps Triggered 7 | . . 1 . 1 3 . . . . . 1 1 . . . Indirectly . | . . . . . . . . . . . . . . . . Trap Hack Attempts . | . . . . . . . . . . . . . . . . Triggered . | . . . . . . . . . . . . . . . . Disarmed . | . . . . . . . . . . . . . . . . Reprogrammed . | . . . . . . . . . . . . . . . . Reused . | . . . . . . . . . . . . . . . . Traps Extracted . | . . . . . . . . . . . . . . . . Installed . | . . . . . . . . . . . . . . . . Triggered . | . . . . . . . . . . . . . . . . Machines | -11 -10 -10 -9 -8 -7 -6 -6 -6 -6 -5 -5 -5 -5 -5 -5 ---------- Run | Yrd Mat Min Mat Mat Fac Fac Low Low Dat Pro Fac Ext Cet Arc Hub Machines Disabled 23 | . 1 . . . 1 5 . 1 . . . 5 2 3 5 Max in Single Turn 4 | . 1 . . . 1 4 . 1 . . . 1 1 1 1 Garrison Access 1 | . . . . . . 1 . . . . . . . . . Machines Repaired . | . . . . . . . . . . . . . . . . Machines Dismantled . | . . . . . . . . . . . . . . . . Machines Sabotaged . | . . . . . . . . . . . . . . . . Overloaded Fab Kills . | . . . . . . . . . . . . . . . . Hacking | -11 -10 -10 -9 -8 -7 -6 -6 -6 -6 -5 -5 -5 -5 -5 -5 --------- Run | Yrd Mat Min Mat Mat Fac Fac Low Low Dat Pro Fac Ext Cet Arc Hub Machines Accessed 43 | . 1 2 7 4 12 5 1 . 4 . . 2 3 . 2 Terminals 29 | . 1 1 6 2 8 4 . . . . . 2 3 . 2 Fabricators 2 | . . . . . 2 . . . . . . . . . . Repair Stations 1 | . . . . . 1 . . . . . . . . . . Recycling Units 3 | . . . 1 2 . . . . . . . . . . . Scanalyzers . | . . . . . . . . . . . . . . . . Garrison Access 2 | . . . . . 1 1 . . . . . . . . . Total Hacks 113 | . 2 5 19 11 24 13 1 . 29 . . 2 4 . 3 Successful 71 | . 1 4 10 6 10 7 1 . 29 . . . 1 . 2 Failed 42 | . 1 1 9 5 14 6 . . . . . 2 3 . 1 Catastrophic 7 | . . 1 . 1 3 . . . . . . . 1 . 1 Database Lockouts . | . . . . . . . . . . . . . . . . Manual 48 | . 2 3 11 5 13 9 . 1 . . . 2 . . 2 Terminals 66 | . 2 4 15 4 20 12 . . . . . 2 4 . 3 Fabricators 2 | . . . . . 2 . . . . . . . . . . Repair Stations 1 | . . . . . 1 . . . . . . . . . . Recycling Units 11 | . . . 4 7 . . . . . . . . . . . Scanalyzers . | . . . . . . . . . . . . . . . . Garrison Access 2 | . . . . . 1 1 . . . . . . . . . Terminal Hacks 50 | . . 3 4 2 5 4 1 . 29 . . . 1 . 1 Record 15 | . . . . . 1 2 . . 11 . . . 1 . . Part Schematic 10 | . . . . . . . . . 10 . . . . . . Robot Schematic 5 | . . . . . . . . . 5 . . . . . . Prototype ID Bank 3 | . . . . . . . . . 3 . . . . . . Open Door 2 | . . 1 . . . . 1 . . . . . . . . Branch Access Points 1 | . . . . . . 1 . . . . . . . . . Unreport Threat 6 | . . 1 1 1 2 . . . . . . . . . 1 Zone Layout 8 | . . 1 3 1 2 1 . . . . . . . . . Fabricator Hacks 2 | . . . . . 2 . . . . . . . . . . Build 2 | . . . . . 2 . . . . . . . . . . Repair Station Hacks 1 | . . . . . 1 . . . . . . . . . . Refit 1 | . . . . . 1 . . . . . . . . . . Recycling Unit Hacks 3 | . . . 1 2 . . . . . . . . . . . Retrieve Components 3 | . . . 1 2 . . . . . . . . . . . Scanalyzer . | . . . . . . . . . . . . . . . . Garrison Access Hacks 1 | . . . . . . 1 . . . . . . . . . Seal Access 1 | . . . . . . 1 . . . . . . . . . Unauthorized Hacks 14 | . 1 1 5 2 2 2 . . . . . . . . 1 Terminals 11 | . 1 1 4 . 2 2 . . . . . . . . 1 Assimilate 1 | . . . . . . 1 . . . . . . . . . Botnet 10 | . 1 1 4 . 2 1 . . . . . . . . 1 Fabricators . | . . . . . . . . . . . . . . . . Repair Stations . | . . . . . . . . . . . . . . . . Recycling Units 3 | . . . 1 2 . . . . . . . . . . . Reject 3 | . . . 1 2 . . . . . . . . . . . Scanalyzers . | . . . . . . . . . . . . . . . . Garrison Access . | . . . . . . . . . . . . . . . . Data Cores Recovered 2 | . . . 1 . . . . . . . . . . . 1 Used . | . . . . . . . . . . . . . . . . Hacking Detections 28 | . . 1 5 4 8 4 . . . . . 2 2 . 2 Full Trace Events 3 | . . . . . 3 . . . . . . . . . . Feedback Events . | . . . . . . . . . . . . . . . . Feedback Blocked . | . . . . . . . . . . . . . . . . Robot Schematics Acquired 5 | . . . . . . . . . 5 . . . . . . Robots Built 4 | . . . . . 4 . . . . . . . . . . Authchips . | . . . . . . . . . . . . . . . . Time 134 | . . . . . 134 . . . . . . . . . . Total Robot Build Rating 16 | . . . . . 16 . . . . . . . . . . Part Schematics Acquired 10 | . . . . . . . . . 10 . . . . . . Parts Built 2 | . . . . . 2 . . . . . . . . . . Authchips . | . . . . . . . . . . . . . . . . Time 95 | . . . . . 95 . . . . . . . . . . Total Part Build Rating 10 | . . . . . 10 . . . . . . . . . . Parts Repaired . | . . . . . . . . . . . . . . . . Time . | . . . . . . . . . . . . . . . . Parts Recycled . | . . . . . . . . . . . . . . . . Recycled Matter . | . . . . . . . . . . . . . . . . Retrieved Matter . | . . . . . . . . . . . . . . . . Retrieved Components 6 | . . . 1 5 . . . . . . . . . . . Parts Scanalyzed . | . . . . . . . . . . . . . . . . Part Schematics Acquired . | . . . . . . . . . . . . . . . . Parts Damaged . | . . . . . . . . . . . . . . . . Bothacking | -11 -10 -10 -9 -8 -7 -6 -6 -6 -6 -5 -5 -5 -5 -5 -5 ------------ Run | Yrd Mat Min Mat Mat Fac Fac Low Low Dat Pro Fac Ext Cet Arc Hub Used RIF Installer . | . . . . . . . . . . . . . . . . Robots Hacked . | . . . . . . . . . . . . . . . . Non-combat . | . . . . . . . . . . . . . . . . Combat . | . . . . . . . . . . . . . . . . Robot Hacks Applied . | . . . . . . . . . . . . . . . . Relay Couplers Released . | . . . . . . . . . . . . . . . . Fabnet Peak Effective % . | . . . . . . . . . . . . . . . . Robots Rewired 12 | . . . . . . . . . . . . 12 . . . Allies Hacked . | . . . . . . . . . . . . . . . . Hacks Repelled . | . . . . . . . . . . . . . . . . Allies | -11 -10 -10 -9 -8 -7 -6 -6 -6 -6 -5 -5 -5 -5 -5 -5 -------- Run | Yrd Mat Min Mat Mat Fac Fac Low Low Dat Pro Fac Ext Cet Arc Hub Total Allies 28 | . . . . . 4 1 . . . . . 23 . . . Largest Group 15 | . . . . . 4 1 . . . . . 15 6 . . Highest-Rated Group 432 | . . . . . 48 10 . . . . . 432 185 . . Highest-Rated Ally 39 | . . . . . 12 10 . . . . . 39 39 . . Total Orders 2 | . . . . . . . . . . . . . 2 . . STAY 1 | . . . . . . . . . . . . . 1 . . FOLLOW 1 | . . . . . . . . . . . . . 1 . . Ally Attacks 160 | . . . . . 5 . . . . . . 114 41 . . Total Damage 2824 | . . . . . 53 . . . . . . 2209 562 . . Kills 21 | . . . . . 1 . . . . . . 16 4 . . Allies Corrupted . | . . . . . . . . . . . . . . . . Allies Melted 1 | . . . . . . . . . . . . 1 . . . Intel | -11 -10 -10 -9 -8 -7 -6 -6 -6 -6 -5 -5 -5 -5 -5 -5 ------- Run | Yrd Mat Min Mat Mat Fac Fac Low Low Dat Pro Fac Ext Cet Arc Hub Robot Analysis Total . | . . . . . . . . . . . . . . . . Derelict Logs Recovered 6 | . . 2 . . . . 2 1 . 1 . . . . . Drone Launches . | . . . . . . . . . . . . . . . . Drone Recoveries . | . . . . . . . . . . . . . . . . Exploration | -11 -10 -10 -9 -8 -7 -6 -6 -6 -6 -5 -5 -5 -5 -5 -5 ------------- Run | Yrd Mat Min Mat Mat Fac Fac Low Low Dat Pro Fac Ext Cet Arc Hub Turns Passed 10779 | 56 166 236 467 539 2567 645 954 639 100 834 430 2052 499 286 309 Spaces Moved 7377 | 37 97 193 299 373 1858 480 808 444 87 686 288 1096 333 128 170 Core 255 | 5 . . . 178 20 . . . . . 52 . . . . Treads 312 | . . . . . . . . . . . . 312 . . . Legs 6696 | 32 97 193 299 195 1838 480 808 444 87 686 209 697 333 128 170 Wheels . | . . . . . . . . . . . . . . . . Hover 114 | . . . . . . . . . . . 27 87 . . . Flight . | . . . . . . . . . . . . . . . . Fastest Speed 50 | 50 120 120 120 50 50 110 110 110 110 110 50 60 120 120 120 Average Speed 118 | 123 120 120 123 86 124 122 110 110 110 110 98 132 120 120 129 Slowest Speed 260 | 190 120 120 190 120 190 123 110 110 110 110 189 240 120 120 260 Overloaded Moves . | . . . . . . . . . . . . . . . . Propulsion Burnouts . | . . . . . . . . . . . . . . . . Robots Hopped . | . . . . . . . . . . . . . . . . Cave-ins Triggered . | . . . . . . . . . . . . . . . . Exploration Rate (%) 49 | 3 33 55 31 47 59 21 69 62 70 79 7 78 87 76 13 Regions Visited 15 Branch Regions 9 Pre-discovered Areas 1 | . . . . . . . . . 1 . . . . . . Known Exits Taken 9 | . . . . . 1 1 1 1 1 1 . 1 1 1 . Unknown Exits Taken 6 | 1 1 1 1 1 . . . . . . 1 . . . . Scrap Searched 9 | . . 1 . . . . 3 3 . 2 . . . . . Spaces Dug 2 | . . . . . . . 2 . . . . . . . . Terrain Destroyed 168 | . . . . . 23 16 16 12 . 15 12 39 6 17 12 Melee . | . . . . . . . . . . . . . . . . Projectile 136 | . . . . . 4 6 16 12 . 15 12 38 6 16 11 AOE 29 | . . . . . 19 10 . . . . . . . . . Terrain Rammed . | . . . . . . . . . . . . . . . . Walls Destroyed . | . . . . . . . . . . . . . . . . Machines Disabled . | . . . . . . . . . . . . . . . . Actions | -11 -10 -10 -9 -8 -7 -6 -6 -6 -6 -5 -5 -5 -5 -5 -5 --------- Run | Yrd Mat Min Mat Mat Fac Fac Low Low Dat Pro Fac Ext Cet Arc Hub Total 8632 | 44 116 198 357 495 2007 518 859 555 92 726 374 1495 389 194 213 Wait 300 | . . 3 13 14 22 3 27 73 . 14 42 79 . . 10 Move 7362 | 36 96 192 298 372 1857 479 807 443 86 685 287 1095 332 127 170 Hop . | . . . . . . . . . . . . . . . . Pick Up 76 | 2 3 . 6 8 14 3 2 1 . 1 4 19 6 6 1 Fast Attach 75 | 6 1 1 2 3 10 2 . 3 1 1 3 30 8 3 1 Attach 59 | . . . 3 7 8 4 2 3 2 1 9 9 1 3 7 Detach 16 | . . 1 2 1 4 1 . . 2 1 . 2 1 1 . Swap 58 | . . . 3 9 14 6 3 2 . 3 . 11 4 2 1 Drop 115 | . . 1 6 16 21 8 3 6 1 2 2 25 13 9 2 Fire 440 | . 15 . 23 55 51 12 15 24 . 18 27 112 24 43 21 Melee . | . . . . . . . . . . . . . . . . Ram 6 | . . . . 6 . . . . . . . . . . . Kick 13 | . 1 . 1 4 6 . . . . . . 1 . . . Crush . | . . . . . . . . . . . . . . . . Escape Stasis 5 | . . . . . . . . . . . . 5 . . . Rewire 107 | . . . . . . . . . . . . 107 . . . Trap . | . . . . . . . . . . . . . . . . Miscellaneous . | . . . . . . . . . . . . . . . . Route ------- -11/Scrapyard -10/Materials -10/Mines (discovered 2 exits: *Mat x2) -9/Materials (discovered 4 exits: *Mat / Min / [*Sto x2]) -8/Materials -7/Factory (discovered 2 exits: *Fac x2) -6/Factory (discovered 2 exits: *Low x2) -6/Lower Caves -6/Lower Caves (discovered 2 exits: *Fac / *Dat) -6/Data Miner -5/Proximity Caves -5/Factory (discovered 2 exits: Fac / *Ext) -5/Extension (discovered 3 exits: *Fac x2 / *Cet) -5/Cetus (discovered 2 exits: *Fac / *Arc) -5/Archives (discovered 3 exits: *Fac / *Hub x2) -5/Hub_04(d) History --------- Turn | Location | Event 10 | -11/Scrapyard | Discovered new exit (range 16) 57 | -11/Scrapyard | Entered Materials 214 | -10/Materials | Discovered new exit (range 9) 223 | -10/Materials | Entered Mines 294 | -10/Mines | Discovered new exit (range 14) 315 | -10/Mines | Build established: Mutant 325 | -10/Mines | Learned Materials interactive machine intel 423 | -10/Mines | Discovered new exit (range 15) 437 | -10/Mines | Learned location of 1 exit from Materials 439 | -10/Mines | Met a Derelict who couldn't figure out how to use a Trap Extractor 459 | -10/Mines | Entered Materials 459 | -9/Materials | Evolved 2 slots: Utility x2 460 | -9/Materials | Identified exit to Mines 461 | -9/Materials | Loaded intel: 18 interactive machine locations 490 | -9/Materials | Discovered new exit (range 12) 490 | -9/Materials | Discovered new exit (range 20) 727 | -9/Materials | Discovered new exit (range 3) 907 | -9/Materials | Build established: Scavenger-Mutant 926 | -9/Materials | Entered another Materials area 926 | -8/Materials | Evolved 2 slots: Propulsion x1, Utility x1 1358 | -8/Materials | Core integrity fell below 50% 1415 | -8/Materials | Lost 9 parts (2p3n2u2w) 1427 | -8/Materials | Core integrity fell below 20% 1462 | -8/Materials | Discovered new exit (range 7) 1465 | -8/Materials | Entered Factory 1465 | -7/Factory | Evolved 2 slots: Utility x1, Weapon x1 2120 | -7/Factory | Fabricated Imp. Thermal Generator? 2258 | -7/Factory | Build established: Scavenger-Skirmisher 3075 | -7/Factory | Discovered new exit (range 10) 3138 | -7/Factory | Identified exit to Factory 3411 | -7/Factory | Fabricated S-27 Virus (x4) 3474 | -7/Factory | Lost 4 allies 3989 | -7/Factory | Discovered exit to Factory (range 8) 4032 | -7/Factory | Entered another Factory area 4032 | -6/Factory | Evolved 2 slots: Utility x2 4331 | -6/Factory | Build established: Scavenger-Tank 4399 | -6/Factory | Identified exit to Lower Caves 4677 | -6/Factory | Entered Lower Caves 4700 | -6/Lower Caves | Lost 3 parts (1p1u1w) 4898 | -6/Lower Caves | Learned Factory interactive machine intel 4948 | -6/Lower Caves | Build established: Scavenger-Skirmisher 5119 | -6/Lower Caves | Encountered a Warlord checkpoint 5422 | -6/Lower Caves | Learned Factory stockpile data 5612 | -6/Lower Caves | Discovered new exit (range 5) 5616 | -6/Lower Caves | Identified exit to Lower Caves 5631 | -6/Lower Caves | Entered another Lower Caves area 5679 | -6/Lower Caves | Discovered new exit (range 14) 5720 | -6/Lower Caves | Acquired the password to a Derelict Tinkerer's latest research 5783 | -6/Lower Caves | Found Prototype Special Weapon 5783 | -6/Lower Caves | Identified Molecular Deconstructor 5893 | -6/Lower Caves | Caught by Unaware searching for contraband prototypes 6112 | -6/Lower Caves | Learned location of 1 exit from Factory 6197 | -6/Lower Caves | Ambushed by wild Derelicts 6245 | -6/Lower Caves | Discovered new exit (range 8) 6256 | -6/Lower Caves | System corruption reached 10% 6269 | -6/Lower Caves | Identified exit to Data Miner 6270 | -6/Lower Caves | Entered Data Miner 6270 | -6/Data Miner | Discovered new exit (range 6) 6276 | -6/Data Miner | Identified exit to Proximity Caves 6286 | -6/Data Miner | Lost 3 parts (2u1w) 6295 | -6/Data Miner | Met Data Miner 6321 | -6/Data Miner | Learned location of Section 7 (-2) 6321 | -6/Data Miner | Acquired the access code to Warlord's prototype stash 6340 | -6/Data Miner | Received God Mode back door access code from Data Miner 6370 | -6/Data Miner | Entered Proximity Caves 6648 | -5/Proximity Caves | Learned Factory terminal intel 7194 | -5/Proximity Caves | Discovered new exit (range 10) 7203 | -5/Proximity Caves | Identified exit to Factory 7204 | -5/Proximity Caves | Entered Factory 7204 | -5/Factory | Evolved 2 slots: Propulsion x2 7205 | -5/Factory | Identified exit to Factory 7207 | -5/Factory | Loaded intel: 52 interactive machine locations 7208 | -5/Factory | Loaded intel: 28 terminal locations 7491 | -5/Factory | Garrison activated, responded to threat 7579 | -5/Factory | Released all parts (9) 7605 | -5/Factory | Lost 11 parts (2p2n3u4w) 7627 | -5/Factory | Discovered new exit (range 12) 7634 | -5/Factory | Entered Extension 7696 | -5/Extension | Rescued a captive Derelict 7770 | -5/Extension | Lost 3 parts (1p1u1w) 8082 | -5/Extension | Rescued a captive Derelict 8084 | -5/Extension | Rescued a captive Derelict 8174 | -5/Extension | Build established: Scavenger-Tank 8600 | -5/Extension | Rescued a captive Derelict 8601 | -5/Extension | Rescued a captive Derelict 8651 | -5/Extension | Spotted B-75 Beast 8665 | -5/Extension | Rescued a captive Derelict 8665 | -5/Extension | Rescued a captive Derelict 8693 | -5/Extension | Destroyed B-75 Beast 8699 | -5/Extension | Spotted B-75 Beast 8706 | -5/Extension | Destroyed B-75 Beast 8730 | -5/Extension | Lost 3 allies 8737 | -5/Extension | Lost 6 parts (2n3u1w) 8761 | -5/Extension | Discovered exit to Factory (range 3) 9100 | -5/Extension | Build established: Scavenger-Skirmisher 9234 | -5/Extension | Disrupted transfer network 9267 | -5/Extension | Rescued a captive Derelict 9289 | -5/Extension | Rescued a captive Derelict 9465 | -5/Extension | Rescued a captive Derelict 9469 | -5/Extension | Rescued a captive Derelict 9570 | -5/Extension | Lost 7 allies 9629 | -5/Extension | Discovered exit to Factory (range 10) 9630 | -5/Extension | Discovered new exit (range 6) 9640 | -5/Extension | Disrupted transfer network 9677 | -5/Extension | Lost 4 allies 9683 | -5/Extension | Identified exit to Cetus 9686 | -5/Extension | Entered Cetus 9686 | -5/Cetus | Accompanied by 6 allies 9703 | -5/Cetus | Spotted Cetus Guard 9703 | -5/Cetus | Spotted Cetus Guard 9711 | -5/Cetus | Spotted Cetus Guard 9711 | -5/Cetus | Spotted Cetus Guard 9712 | -5/Cetus | Allies destroyed Cetus Guard 9715 | -5/Cetus | Allies destroyed Cetus Guard 9718 | -5/Cetus | Allies destroyed Cetus Guard 9726 | -5/Cetus | Cetus Manufacturing Module disabled 9727 | -5/Cetus | Destroyed Cetus Guard 9750 | -5/Cetus | Lost 3 allies 9775 | -5/Cetus | Build established: Scavenger-Tank 10024 | -5/Cetus | Discovered new exit (range 15) 10047 | -5/Cetus | Spotted Cetus Guard 10048 | -5/Cetus | Spotted Cetus Guard 10052 | -5/Cetus | Core integrity fell below 50% 10059 | -5/Cetus | Spotted Cetus Guard 10060 | -5/Cetus | Spotted Cetus Guard 10073 | -5/Cetus | Destroyed Cetus Guard 10080 | -5/Cetus | Destroyed Cetus Guard 10090 | -5/Cetus | Destroyed Cetus Guard 10094 | -5/Cetus | Destroyed Cetus Guard 10098 | -5/Cetus | Lost 3 allies 10110 | -5/Cetus | Discovered exit to Factory (range 16) 10120 | -5/Cetus | Met Revision 17 10122 | -5/Cetus | Lost 4 parts (1n2u1w) 10184 | -5/Cetus | Identified exit to Archives 10185 | -5/Cetus | Entered Archives 10289 | -5/Archives | Discovered new exit (range 16) 10380 | -5/Archives | Discovered exit to Factory (range 14) 10393 | -5/Archives | Unable to access archive contents 10408 | -5/Archives | Discovered new exit (range 15) 10453 | -5/Archives | Identified exit to Hub_04(d) 10471 | -5/Archives | Entered Hub_04(d) 10690 | -5/Hub_04(d) | Garrison activated, responded to threat 10736 | -5/Hub_04(d) | Spotted B-75 Beast 10763 | -5/Hub_04(d) | Core integrity fell below 20% 10780 | -5/Hub_04(d) | Destroyed by G-50 Soldier with Heavy Laser Last Messages --------------- 10765_ Centrium Medium Armor Plating destroyed. 10765_ Penetrated by Slug. 10769_ Adv. Heat Sink destroyed. 10769_ Penetrated by Slug. 10769_ K-01 Serf destroyed. 10771_ Penetrated by Slug. 10772_ Adv. Variable Charge Gun destroyed. 10772_ Penetrated by Slug. 10774_ Power failure, Quantum Reactor shutdown. 10774_ Critical hit (Burn: +37). 10774_ Penetrated by Slug. 10775_ Quantum Rifle destroyed. 10777_ Penetrated by Slug. 10777_ H-66 Slayer destroyed. 10777_ Switching to secondary target: Y-64 Sentinel. 10777_ Slug penetrates Y-64 Sentinel. 10777_ Y-64 Sentinel suffers critical hit (Destroy). 10777_ Destroyed KE Penetrator. 10777_ Slug penetrates G-50 Soldier. 10778_ Quantum Reactor destroyed. Map ----- +----------------------------------------------------+ | ?????????????????????????????????????????????????? | | ?????????????????????????????????????????????????? | | ?????????????????????????????????????????????????? | | ?????????????????????????????????????????????????? | | ?????????????????????????????????????????????????? | | ?????????????????????????????????????????????????? | | ?????????????????????????????????????????????????? | | ?????????????????????????????????????????????????? | | ?????????????????????????????????????????????????? | | ?????????????????????????????????????????????????? | | ????????????????????????? ???????????????????????? | | ????????????????????????? ???????????????????????? | | ????????????????????????? ???????????????????????? | | ????????????????????????? ???????????????????????? | | #########???????????????" ???????????????????????? | | ???????????????" ???????????????????????? | | """" """" ????????????? ???????????????????????? | | """" """" ????????????" #??????????????????????? | | "" " """" #??????????""" #??????????????????????? | | "" " """ #?????# ??"""" #??????????????????????? | | #???#?# """" #??????????????????????? | | ####+#########+### [#??????????????????????? | | + # ## """"%#??????????????????????? | | # # ## """ #??????????????????????? | | " *=# ## ""=" #??????????????????????? | | " [%= ## !""[%@#??????? ?????????????? | | /%%*" =% ## *!=!g%[#??? ???????????????? | | !" !%" [= ######gY### """ #????????????? | | " # " = ######[% #????????????? | | [#% " " ! #????????????? | | ### = ##########""##;T#####+##### #?????????????? | | #?#* #################??????????????????????????? | | ### # #?????????????????????????????????? | | #"" # #?????????????????????????????????? | | #T # #?????????????????????????????????? | | ### # """"#?????????????????????????????????? | | ??# + """"#?????????????????????????????????? | | ??# " """"#?????????????????????????????????? | | ??# # """"#?????????????????????????????????? | | ??# # #?????????????????????????????????? | | ??# # #?????????????????????????????????? | | ??# ##########?????????????????????????????????? | | ??#####??????????????????????????????????????????? | | ?????????????????????????????????????????????????? | | ?????????????????????????????????????????????????? | | ?????????????????????????????????????????????????? | | ?????????????????????????????????????????????????? | | ?????????????????????????????????????????????????? | | ?????????????????????????????????????????????????? | | ?????????????????????????????????????????????????? | +----------------------------------------------------+ Best States ------------- Heat Dissipation 135 Energy Generation 25 Energy Capacity 350 Matter Stores 300 Matter Capacity 300 Sight Range 18 Robot Scan Range 16 Terrain Scan Range 14 Terrain Scan Density 10 Armor Coverage 675 Weapon Cycling 15 Phase Shifting 5 Evasion (%) 59 Targeting Accuracy 8 Recoil Reduction 5 Offensive Hacking 10 Defensive Hacking 10 Item Schematics ----------------- Combat Drone Bay | -6/Data Miner | Free Lgt. Regenerative Plating | -6/Data Miner | Free Cld. Gravmag System | -6/Data Miner | Free Prc. Energy Filter | -6/Data Miner | Free Thunder Hammer | -6/Data Miner | Free Adv. Medium Treads | -6/Data Miner | Free Imp. Armor Integrity Analyzer | -6/Data Miner | Free Railgun | -6/Data Miner | Free Hvy. Disruptor Cannon | -6/Data Miner | Free Adv. Force Field | -6/Data Miner | Free Robot Schematics ------------------ M-22 Extractor | -6/Data Miner | Free B-60 Warrior | -6/Data Miner | Free G-50 Soldier | -6/Data Miner | Free G-67 Veteran | -6/Data Miner | Free Y-64 Sentinel | -6/Data Miner | Free Fabricated ------------ Imp. Thermal Generator | x2 | -7/Factory | Preloaded S-27 Virus | x4 | -7/Factory | Preloaded Alien Tech Used ----------------- None Achievements -------------- None Challenges ------------ None Game ------ Seed GaussPotentialRefractor Manual? 0 Play Time 01:59:08 Cumulative 58.5 hours Start 2024.06.07 @ 17:35:41 End 2024.06.09 @ 18:35:38 Sessions 3 Manual Loads 0 Difficulty Rogue Special Mode None Game No. 49 Rogue 49 Adventurer 0 Explorer 0 Win Type - Total 0 Types 0/0/0/0/0/0/0/0/0 Lore% 41 Gallery% 40 Achievement% 32 Wizard Run 0 Options --------- Layout 1 ASCII 0 Keyboard 0 Movement Numpad Keybinds 0 Fullscreen 1 Font 20/SmallcapsGlow Map View 54x42 Zoom Use 0% Tactical HUD 1 Map Filters NONE Filters NONE Steam 1 RUN: 3623ba51-9d7c-44d4-84fd-66fe87ffbe7f